[Event "*** Titled Tuesday Blitz"]
[Site "Chess.com"]
[Date "2021.04.20"]
[Round "10"]
[White "jacky72"]
[Black "guillembaches"]
[Result "1-0"]
[WhiteElo "2703"]
[BlackElo "2514"]
[TimeControl "180+1"]
[EndTime "11:55:06 PDT"]
[Termination "jacky72 won on time"]

1. a3 {[%clk 0:03:00.9]} 1... e5 {[%clk 0:02:57.2]} 2. g3 {[%clk 0:03:00.8]}
2... Nf6 {[%clk 0:02:56.5]} 3. Bg2 {[%clk 0:03:01.7]} 3... d5 {[%clk 0:02:56.1]}
4. b4 {[%clk 0:03:02]} 4... Bd6 {[%clk 0:02:54.3]} 5. Bb2 {[%clk 0:03:02.4]}
5... O-O {[%clk 0:02:53.5]} 6. d3 {[%clk 0:03:02.2]} 6... Re8 {[%clk 0:02:47.3]}
7. e3 {[%clk 0:03:02.3]} 7... c6 {[%clk 0:02:47.4]} 8. Ne2 {[%clk 0:03:02.5]}
8... a5 {[%clk 0:02:46.5]} 9. c3 {[%clk 0:03:01]} 9... Nbd7 {[%clk 0:02:40.9]}
10. O-O {[%clk 0:03:00.8]} 10... Nf8 {[%clk 0:02:40.6]} 11. Nd2 {[%clk
0:03:00.8]} 11... h5 {[%clk 0:02:37.3]} 12. h3 {[%clk 0:03:00.3]} 12... Bf5
{[%clk 0:02:33.5]} 13. e4 {[%clk 0:02:59.4]} 13... Be6 {[%clk 0:02:28.6]} 14.
Re1 {[%clk 0:02:54.1]} 14... Qd7 {[%clk 0:02:24.2]} 15. Kh2 {[%clk 0:02:54.5]}
15... h4 {[%clk 0:02:21.3]} 16. Qc2 {[%clk 0:02:34.6]} 16... Ng6 {[%clk
0:02:16.2]} 17. Nf3 {[%clk 0:02:17.2]} 17... hxg3+ {[%clk 0:02:08.5]} 18. fxg3
{[%clk 0:02:18.1]} 18... a4 {[%clk 0:02:03.2]} 19. Ng5 {[%clk 0:02:18]} 19...
dxe4 {[%clk 0:01:55.9]} 20. dxe4 {[%clk 0:02:18.1]} 20... Bb3 {[%clk 0:01:53.2]}
21. Qd3 {[%clk 0:02:18.5]} 21... Rad8 {[%clk 0:01:49.8]} 22. Qf3 {[%clk
0:02:13.4]} 22... Qe7 {[%clk 0:01:38.4]} 23. Nc1 {[%clk 0:02:09.5]} 23... Bc4
{[%clk 0:01:34.6]} 24. Bf1 {[%clk 0:02:07.5]} 24... Bxf1 {[%clk 0:01:23.7]} 25.
Rxf1 {[%clk 0:02:08.4]} 25... Rf8 {[%clk 0:01:19.5]} 26. c4 {[%clk 0:02:06.3]}
26... Nh7 {[%clk 0:01:16.6]} 27. Nxh7 {[%clk 0:02:03.9]} 27... Kxh7 {[%clk
0:01:17.5]} 28. Ne2 {[%clk 0:01:54.3]} 28... Bc7 {[%clk 0:01:14.7]} 29. Rad1
{[%clk 0:01:54.7]} 29... Kg8 {[%clk 0:01:09.7]} 30. Nc3 {[%clk 0:01:50.5]} 30...
Rxd1 {[%clk 0:01:07.2]} 31. Rxd1 {[%clk 0:01:51.4]} 31... Rd8 {[%clk 0:01:07]}
32. Nxa4 {[%clk 0:01:51.9]} 32... Qg5 {[%clk 0:00:58.8]} 33. Bc1 {[%clk
0:01:45]} 33... Qe7 {[%clk 0:00:51.5]} 34. Be3 {[%clk 0:01:39.3]} 34... Qe6
{[%clk 0:00:47.7]} 35. Rxd8+ {[%clk 0:01:37.5]} 35... Bxd8 {[%clk 0:00:48.6]}
36. Qd1 {[%clk 0:01:36.3]} 36... Bf6 {[%clk 0:00:45.1]} 37. Qd3 {[%clk
0:01:34.9]} 37... Nf8 {[%clk 0:00:37.4]} 38. Nb6 {[%clk 0:01:30.6]} 38... g6
{[%clk 0:00:32.3]} 39. a4 {[%clk 0:01:30.9]} 39... Be7 {[%clk 0:00:29.5]} 40. b5
{[%clk 0:01:29.3]} 40... Qf6 {[%clk 0:00:26.8]} 41. Kg2 {[%clk 0:01:27.5]} 41...
Kg7 {[%clk 0:00:16.3]} 42. Nd7 {[%clk 0:01:26.4]} 42... Nxd7 {[%clk 0:00:14.6]}
43. Qxd7 {[%clk 0:01:27.3]} 43... cxb5 {[%clk 0:00:13]} 44. axb5 {[%clk
0:01:26.1]} 44... Ba3 {[%clk 0:00:12.6]} 45. Qxb7 {[%clk 0:01:21.9]} 45... Qd6
{[%clk 0:00:12.2]} 46. Qd5 {[%clk 0:01:22.5]} 46... Qb4 {[%clk 0:00:12.3]} 47.
Qxe5+ {[%clk 0:01:22.6]} 47... f6 {[%clk 0:00:12.5]} 48. Qd4 {[%clk 0:01:17.8]}
48... Qb1 {[%clk 0:00:11.4]} 49. b6 {[%clk 0:01:07.4]} 49... Bb2 {[%clk
0:00:11]} 50. Qd7+ {[%clk 0:01:05.8]} 50... Kg8 {[%clk 0:00:10.8]} 51. Qe8+
{[%clk 0:01:04.9]} 51... Kh7 {[%clk 0:00:10.4]} 52. Qe7+ {[%clk 0:01:04]} 52...
Kg8 {[%clk 0:00:10.4]} 53. b7 {[%clk 0:01:03.3]} 53... Qc2+ {[%clk 0:00:07.8]}
54. Bf2 {[%clk 0:01:03.2]} 1-0

[Event "*** Titled Tuesday Blitz"]
[Site "Chess.com"]
[Date "2021.04.20"]
[Round "10"]
[White "MPGM"]
[Black "AEMEffi"]
[Result "1-0"]
[WhiteElo "2502"]
[BlackElo "2332"]
[TimeControl "180+1"]
[EndTime "11:55:07 PDT"]
[Termination "MPGM won by checkmate"]

1. c4 {[%clk 0:03:00.9]} 1... e5 {[%clk 0:02:58.3]} 2. Nc3 {[%clk 0:03:00.5]}
2... Nf6 {[%clk 0:02:58.7]} 3. g3 {[%clk 0:03:00.1]} 3... Nc6 {[%clk 0:02:59.6]}
4. Bg2 {[%clk 0:03:00]} 4... Bc5 {[%clk 0:02:59.8]} 5. a3 {[%clk 0:02:55.7]}
5... a5 {[%clk 0:02:55.8]} 6. e3 {[%clk 0:02:55.1]} 6... O-O {[%clk 0:02:53.8]}
7. Nge2 {[%clk 0:02:55]} 7... Re8 {[%clk 0:02:51.7]} 8. O-O {[%clk 0:02:54]}
8... h6 {[%clk 0:02:35.9]} 9. b3 {[%clk 0:02:48.4]} 9... Bf8 {[%clk 0:02:29.1]}
10. Bb2 {[%clk 0:02:46.5]} 10... d6 {[%clk 0:02:24.9]} 11. f4 {[%clk 0:02:41.4]}
11... e4 {[%clk 0:02:21.5]} 12. Nd5 {[%clk 0:01:38.4]} 12... Nxd5 {[%clk
0:02:03.1]} 13. cxd5 {[%clk 0:01:39.3]} 13... Nb8 {[%clk 0:02:01]} 14. f5 {[%clk
0:01:26.7]} 14... c6 {[%clk 0:01:56.1]} 15. Nc3 {[%clk 0:01:17.8]} 15... cxd5
{[%clk 0:01:35.4]} 16. Nxd5 {[%clk 0:01:17.4]} 16... Nc6 {[%clk 0:01:10.1]} 17.
Rc1 {[%clk 0:01:01.1]} 17... Bd7 {[%clk 0:00:38.8]} 18. Rc4 {[%clk 0:00:59]}
18... b5 {[%clk 0:00:35.5]} 19. Rxe4 {[%clk 0:00:58.8]} 19... Rxe4 {[%clk
0:00:29.6]} 20. Bxe4 {[%clk 0:00:59.7]} 20... b4 {[%clk 0:00:27]} 21. a4 {[%clk
0:00:44.5]} 21... Rc8 {[%clk 0:00:26.7]} 22. f6 {[%clk 0:00:27.5]} 22... g6
{[%clk 0:00:25.5]} 23. Qe2 {[%clk 0:00:21]} 23... Ne5 {[%clk 0:00:13.5]} 24.
Ne7+ {[%clk 0:00:15.6]} 24... Bxe7 {[%clk 0:00:12.5]} 25. fxe7 {[%clk
0:00:16.5]} 25... Qxe7 {[%clk 0:00:12.7]} 26. Bg2 {[%clk 0:00:04.5]} 26... Bg4
{[%clk 0:00:12.6]} 27. Qa6 {[%clk 0:00:03.7]} 27... Be6 {[%clk 0:00:11.2]} 28.
Qxa5 {[%clk 0:00:03.5]} 28... Nd3 {[%clk 0:00:11.3]} 29. Ba1 {[%clk 0:00:02.8]}
29... Bxb3 {[%clk 0:00:10.5]} 30. Qb6 {[%clk 0:00:02]} 30... d5 {[%clk
0:00:08.7]} 31. Qd4 {[%clk 0:00:01.9]} 31... Bc4 {[%clk 0:00:07.9]} 32. Qg7#
{[%clk 0:00:01.5]} 1-0

[Event "*** Titled Tuesday Blitz"]
[Site "Chess.com"]
[Date "2021.04.20"]
[Round "10"]
[White "AlexSuv"]
[Black "Raud100"]
[Result "0-1"]
[WhiteElo "2556"]
[BlackElo "2404"]
[TimeControl "180+1"]
[EndTime "11:55:09 PDT"]
[Termination "Raud100 won by resignation"]

1. d4 {[%clk 0:03:00.9]} 1... d5 {[%clk 0:02:59.7]} 2. c4 {[%clk 0:03:01.1]}
2... c6 {[%clk 0:03:00.6]} 3. Nc3 {[%clk 0:03:00.8]} 3... Nf6 {[%clk 0:03:00.4]}
4. e3 {[%clk 0:02:59.9]} 4... Bf5 {[%clk 0:02:58.5]} 5. cxd5 {[%clk 0:02:58.7]}
5... Nxd5 {[%clk 0:02:58.2]} 6. Nf3 {[%clk 0:02:56.6]} 6... e6 {[%clk
0:02:57.3]} 7. Bd3 {[%clk 0:02:50.8]} 7... Bxd3 {[%clk 0:02:52.6]} 8. Qxd3
{[%clk 0:02:51.7]} 8... Be7 {[%clk 0:02:52.6]} 9. O-O {[%clk 0:02:50]} 9... O-O
{[%clk 0:02:51.9]} 10. e4 {[%clk 0:02:49.6]} 10... Nf6 {[%clk 0:02:51.6]} 11.
Bg5 {[%clk 0:02:46.7]} 11... Nbd7 {[%clk 0:02:51.1]} 12. e5 {[%clk 0:02:40.4]}
12... Nd5 {[%clk 0:02:50.2]} 13. Bxe7 {[%clk 0:02:40.1]} 13... Qxe7 {[%clk
0:02:49.9]} 14. Ne4 {[%clk 0:02:38.5]} 14... h6 {[%clk 0:02:30]} 15. Nd6 {[%clk
0:02:29.1]} 15... c5 {[%clk 0:02:24.6]} 16. Rac1 {[%clk 0:02:23.9]} 16... cxd4
{[%clk 0:02:17.4]} 17. Qxd4 {[%clk 0:02:24.8]} 17... N7b6 {[%clk 0:01:56.9]} 18.
Nd2 {[%clk 0:02:15.6]} 18... Nc8 {[%clk 0:01:45.5]} 19. N2e4 {[%clk 0:02:08.4]}
19... Nxd6 {[%clk 0:01:45.1]} 20. Nxd6 {[%clk 0:02:09.3]} 20... Rad8 {[%clk
0:01:43.1]} 21. Qxa7 {[%clk 0:02:05.9]} 21... Rd7 {[%clk 0:01:42.6]} 22. Rc2
{[%clk 0:01:51.8]} 22... f6 {[%clk 0:01:38.9]} 23. Qc5 {[%clk 0:01:01.5]} 23...
Rc7 {[%clk 0:01:09.1]} 24. exf6 {[%clk 0:00:23.8]} 24... gxf6 {[%clk 0:00:58.7]}
25. Ne4 {[%clk 0:00:16.7]} 25... Rxc5 {[%clk 0:00:55.9]} 26. Nxc5 {[%clk
0:00:17.6]} 26... Rc8 {[%clk 0:00:53.7]} 27. Rfc1 {[%clk 0:00:17.8]} 27... b6
{[%clk 0:00:51.5]} 28. Nd3 {[%clk 0:00:17.8]} 28... Rxc2 {[%clk 0:00:51]} 29.
Rxc2 {[%clk 0:00:18.7]} 29... Qd6 {[%clk 0:00:47.9]} 30. g3 {[%clk 0:00:17.4]}
30... Kg7 {[%clk 0:00:47.3]} 31. a3 {[%clk 0:00:15.8]} 31... Kg6 {[%clk
0:00:46.3]} 32. h4 {[%clk 0:00:15.6]} 32... e5 {[%clk 0:00:43.4]} 33. Ne1 {[%clk
0:00:12.4]} 33... Ne7 {[%clk 0:00:38.8]} 34. Rc3 {[%clk 0:00:09.3]} 34... Qd1
{[%clk 0:00:35.8]} 35. Kf1 {[%clk 0:00:09.6]} 35... Nf5 {[%clk 0:00:31.8]} 36.
Rd3 {[%clk 0:00:09.3]} 36... Qb1 {[%clk 0:00:30.9]} 37. Rd2 {[%clk 0:00:08.9]}
37... Nd4 {[%clk 0:00:28.4]} 38. g4 {[%clk 0:00:09.4]} 38... Nf3 {[%clk
0:00:27.7]} 39. h5+ {[%clk 0:00:07.9]} 39... Kg5 {[%clk 0:00:26.9]} 40. Re2
{[%clk 0:00:08.4]} 40... Kxg4 {[%clk 0:00:24.6]} 41. Re4+ {[%clk 0:00:04.9]} 0-1

[Event "*** Titled Tuesday Blitz"]
[Site "Chess.com"]
[Date "2021.04.20"]
[Round "10"]
[White "BvsN"]
[Black "IriBu"]
[Result "0-1"]
[WhiteElo "2383"]
[BlackElo "2567"]
[TimeControl "180+1"]
[EndTime "11:55:12 PDT"]
[Termination "IriBu won by resignation"]

1. c4 {[%clk 0:03:00.9]} 1... Nf6 {[%clk 0:02:58.8]} 2. Nc3 {[%clk 0:03:00.7]}
2... g6 {[%clk 0:02:59.4]} 3. e4 {[%clk 0:03:01]} 3... Bg7 {[%clk 0:03:00.1]} 4.
d4 {[%clk 0:03:00.7]} 4... d6 {[%clk 0:03:00.4]} 5. Nge2 {[%clk 0:03:00.9]} 5...
c5 {[%clk 0:02:59.4]} 6. d5 {[%clk 0:03:00.9]} 6... O-O {[%clk 0:02:58.1]} 7.
Ng3 {[%clk 0:03:00.4]} 7... e6 {[%clk 0:02:58.6]} 8. Be2 {[%clk 0:03:00.7]} 8...
exd5 {[%clk 0:02:58.5]} 9. cxd5 {[%clk 0:03:01.6]} 9... Re8 {[%clk 0:02:55.9]}
10. O-O {[%clk 0:03:00.8]} 10... Na6 {[%clk 0:02:54.1]} 11. Bg5 {[%clk 0:02:58]}
11... h6 {[%clk 0:02:53.3]} 12. Be3 {[%clk 0:02:56.1]} 12... Nc7 {[%clk
0:02:51.3]} 13. Qd2 {[%clk 0:02:55]} 13... Kh7 {[%clk 0:02:47.6]} 14. f3 {[%clk
0:02:55.2]} 14... a6 {[%clk 0:02:41.2]} 15. a4 {[%clk 0:02:55.5]} 15... Rb8
{[%clk 0:02:41.5]} 16. a5 {[%clk 0:02:55.7]} 16... b5 {[%clk 0:02:41.8]} 17.
axb6 {[%clk 0:02:56.6]} 17... Rxb6 {[%clk 0:02:41.9]} 18. f4 {[%clk 0:02:48.7]}
18... Nb5 {[%clk 0:02:40.5]} 19. e5 {[%clk 0:02:34.7]} 19... Nxc3 {[%clk
0:02:26]} 20. bxc3 {[%clk 0:02:31]} 20... dxe5 {[%clk 0:02:24.4]} 21. Bxc5
{[%clk 0:02:25.2]} 21... exf4 {[%clk 0:02:24.5]} 22. Qxf4 {[%clk 0:02:02.6]}
22... Rb2 {[%clk 0:02:24.2]} 23. Bf3 {[%clk 0:01:45.8]} 23... Nxd5 {[%clk
0:02:05.4]} 24. Qxf7 {[%clk 0:01:34.7]} 24... Be6 {[%clk 0:01:57.2]} 25. Qa7
{[%clk 0:01:08.9]} 25... Nxc3 {[%clk 0:01:56.3]} 26. Ne4 {[%clk 0:00:56.1]}
26... Nxe4 {[%clk 0:01:23.3]} 27. Bxe4 {[%clk 0:00:55.5]} 27... Bc4 {[%clk
0:01:23.4]} 28. Bf3 {[%clk 0:00:07.2]} 28... Bxf1 {[%clk 0:01:20.7]} 29. Rxf1
{[%clk 0:00:08.1]} 29... Rb5 {[%clk 0:01:12.4]} 30. Kh1 {[%clk 0:00:07]} 30...
Kh8 {[%clk 0:00:50.4]} 31. Bc6 {[%clk 0:00:06.6]} 31... Qd3 {[%clk 0:00:43]} 32.
Rg1 {[%clk 0:00:06.6]} 32... Rc8 {[%clk 0:00:34.9]} 33. Bxb5 {[%clk 0:00:06.4]}
33... Qxb5 {[%clk 0:00:33.8]} 34. Bf2 {[%clk 0:00:05.6]} 34... a5 {[%clk
0:00:32.2]} 35. Qf7 {[%clk 0:00:05.7]} 35... Qd3 {[%clk 0:00:28.5]} 36. Re1
{[%clk 0:00:04.9]} 36... Rf8 {[%clk 0:00:26.1]} 37. Qc7 {[%clk 0:00:02]} 37...
Rxf2 {[%clk 0:00:24.2]} 38. Qc8+ {[%clk 0:00:02.1]} 38... Kh7 {[%clk 0:00:24.1]}
39. Qc7 {[%clk 0:00:02.2]} 39... Rf1+ {[%clk 0:00:24.1]} 0-1

[Event "*** Titled Tuesday Blitz"]
[Site "Chess.com"]
[Date "2021.04.20"]
[Round "10"]
[White "NefeLV"]
[Black "gisela_roque"]
[Result "0-1"]
[WhiteElo "1819"]
[BlackElo "1827"]
[TimeControl "180+1"]
[EndTime "11:55:27 PDT"]
[Termination "gisela_roque won on time"]

1. e4 {[%clk 0:03:00.9]} 1... e6 {[%clk 0:02:59.6]} 2. Nf3 {[%clk 0:03:00.4]}
2... d5 {[%clk 0:02:59.6]} 3. Nc3 {[%clk 0:02:55.4]} 3... Nf6 {[%clk 0:02:51.7]}
4. e5 {[%clk 0:02:54.4]} 4... Nfd7 {[%clk 0:02:51.6]} 5. d4 {[%clk 0:02:53.9]}
5... c5 {[%clk 0:02:51.4]} 6. Be2 {[%clk 0:02:52.6]} 6... Nc6 {[%clk 0:02:51.2]}
7. Be3 {[%clk 0:02:48.6]} 7... Be7 {[%clk 0:02:42.5]} 8. O-O {[%clk 0:02:47.1]}
8... O-O {[%clk 0:02:40.5]} 9. Qd2 {[%clk 0:02:43.3]} 9... f6 {[%clk 0:02:06.6]}
10. exf6 {[%clk 0:02:35.7]} 10... Nxf6 {[%clk 0:01:55.7]} 11. dxc5 {[%clk
0:02:35.4]} 11... Ng4 {[%clk 0:01:45.8]} 12. Bd4 {[%clk 0:02:26.5]} 12... e5
{[%clk 0:01:39.2]} 13. Nxe5 {[%clk 0:02:15.3]} 13... Ngxe5 {[%clk 0:01:38.4]}
14. Bxe5 {[%clk 0:02:08.8]} 14... Nxe5 {[%clk 0:01:38.2]} 15. Nxd5 {[%clk
0:02:08.2]} 15... Bxc5 {[%clk 0:01:15.6]} 16. Rad1 {[%clk 0:01:59.9]} 16... Be6
{[%clk 0:01:12.6]} 17. c4 {[%clk 0:01:52.5]} 17... Nc6 {[%clk 0:00:57]} 18. Bf3
{[%clk 0:01:45.7]} 18... Nd4 {[%clk 0:00:55.8]} 19. Be4 {[%clk 0:01:41.5]} 19...
Qh4 {[%clk 0:00:43.2]} 20. Qd3 {[%clk 0:01:35.6]} 20... Bg4 {[%clk 0:00:39]} 21.
Rd2 {[%clk 0:01:23.5]} 21... h6 {[%clk 0:00:26.5]} 22. b4 {[%clk 0:01:22.5]}
22... Bb6 {[%clk 0:00:21.3]} 23. c5 {[%clk 0:01:06.4]} 23... Ne2+ {[%clk
0:00:20.6]} 24. Rxe2 {[%clk 0:00:59.5]} 24... Bxe2 {[%clk 0:00:20]} 25. Qxe2
{[%clk 0:01:00.4]} 25... Bd8 {[%clk 0:00:18.8]} 26. Qd3 {[%clk 0:00:57.4]} 26...
Bg5 {[%clk 0:00:17.9]} 27. a4 {[%clk 0:00:48.1]} 27... Rad8 {[%clk 0:00:17.7]}
28. Qb3 {[%clk 0:00:41.2]} 28... Kh8 {[%clk 0:00:16.9]} 29. f3 {[%clk 0:00:37]}
29... Bf4 {[%clk 0:00:12.3]} 30. Nxf4 {[%clk 0:00:33.6]} 30... Rxf4 {[%clk
0:00:13.2]} 31. Rd1 {[%clk 0:00:26.3]} 31... Rdf8 {[%clk 0:00:11]} 32. Qc2
{[%clk 0:00:17.9]} 32... Qg5 {[%clk 0:00:09.5]} 33. Kh1 {[%clk 0:00:14.7]} 33...
Rh4 {[%clk 0:00:09.3]} 34. b5 {[%clk 0:00:09]} 34... Qe5 {[%clk 0:00:08.5]} 35.
g3 {[%clk 0:00:07.5]} 35... Qxg3 {[%clk 0:00:07.1]} 0-1

[Event "*** Titled Tuesday Blitz"]
[Site "Chess.com"]
[Date "2021.04.20"]
[Round "10"]
[White "Goryachkina"]
[Black "c_r_e_e_p_e_r"]
[Result "1-0"]
[WhiteElo "2654"]
[BlackElo "2397"]
[TimeControl "180+1"]
[EndTime "11:55:31 PDT"]
[Termination "Goryachkina won on time"]

1. e4 {[%clk 0:03:00.2]} 1... c5 {[%clk 0:03:00]} 2. Nf3 {[%clk 0:03:00.1]} 2...
e6 {[%clk 0:03:00.6]} 3. c3 {[%clk 0:02:59.6]} 3... Nf6 {[%clk 0:02:59.8]} 4. e5
{[%clk 0:02:59.7]} 4... Nd5 {[%clk 0:03:00.4]} 5. Bc4 {[%clk 0:02:59.9]} 5... d6
{[%clk 0:03:00.4]} 6. d4 {[%clk 0:02:59.6]} 6... cxd4 {[%clk 0:03:00.1]} 7. cxd4
{[%clk 0:02:59.7]} 7... Nc6 {[%clk 0:03:00.7]} 8. O-O {[%clk 0:02:59.2]} 8...
Be7 {[%clk 0:03:00.4]} 9. Bd2 {[%clk 0:02:59.2]} 9... O-O {[%clk 0:02:59.7]} 10.
Nc3 {[%clk 0:02:59.5]} 10... Nxc3 {[%clk 0:02:58.7]} 11. Bxc3 {[%clk 0:02:59.8]}
11... dxe5 {[%clk 0:02:59]} 12. dxe5 {[%clk 0:02:59]} 12... b6 {[%clk
0:02:57.7]} 13. Qe2 {[%clk 0:02:57.3]} 13... Bb7 {[%clk 0:02:57.8]} 14. Rfd1
{[%clk 0:02:55.3]} 14... Qc7 {[%clk 0:02:57.4]} 15. Rac1 {[%clk 0:02:53.1]}
15... Rac8 {[%clk 0:02:56.3]} 16. Bd3 {[%clk 0:02:51.6]} 16... Qb8 {[%clk
0:02:53.2]} 17. a3 {[%clk 0:02:45.5]} 17... Rfd8 {[%clk 0:02:51.4]} 18. Qe4
{[%clk 0:02:34.9]} 18... g6 {[%clk 0:02:51.3]} 19. Qf4 {[%clk 0:02:33.5]} 19...
Rd5 {[%clk 0:02:28.5]} 20. Bc2 {[%clk 0:02:02.7]} 20... Rcd8 {[%clk 0:02:24]}
21. h4 {[%clk 0:01:58.5]} 21... Rxd1+ {[%clk 0:01:51.1]} 22. Rxd1 {[%clk
0:01:57.7]} 22... Rxd1+ {[%clk 0:01:51.3]} 23. Bxd1 {[%clk 0:01:58.4]} 23... Qd8
{[%clk 0:01:52]} 24. Bc2 {[%clk 0:01:56.8]} 24... Qd5 {[%clk 0:01:25.9]} 25. h5
{[%clk 0:01:51.2]} 25... Nd8 {[%clk 0:01:17.4]} 26. Qg4 {[%clk 0:01:27.9]} 26...
Bf8 {[%clk 0:01:07.9]} 27. hxg6 {[%clk 0:01:22.5]} 27... hxg6 {[%clk 0:01:03.4]}
28. Ng5 {[%clk 0:01:18.5]} 28... Bh6 {[%clk 0:00:46.1]} 29. Nxf7 {[%clk
0:01:00]} 29... Kxf7 {[%clk 0:00:43.7]} 30. Qxg6+ {[%clk 0:00:59.6]} 30... Ke7
{[%clk 0:00:40.8]} 31. f3 {[%clk 0:00:37.7]} 31... Be3+ {[%clk 0:00:37.1]} 32.
Kf1 {[%clk 0:00:34.5]} 32... Ba6+ {[%clk 0:00:33.6]} 33. Ke1 {[%clk 0:00:33.8]}
33... Bd4 {[%clk 0:00:25.5]} 34. Qh7+ {[%clk 0:00:27.2]} 34... Nf7 {[%clk
0:00:20.9]} 35. Qh4+ {[%clk 0:00:26.4]} 35... Kd7 {[%clk 0:00:19.4]} 36. Qxd4
{[%clk 0:00:26.3]} 36... Qxd4 {[%clk 0:00:15.5]} 37. Bxd4 {[%clk 0:00:27.2]}
37... Kc6 {[%clk 0:00:12.3]} 38. Be4+ {[%clk 0:00:27.5]} 38... Kd7 {[%clk
0:00:10.8]} 39. f4 {[%clk 0:00:27.8]} 39... Nh6 {[%clk 0:00:08.8]} 40. Kf2
{[%clk 0:00:26.5]} 40... Bc4 {[%clk 0:00:06.9]} 41. Kf3 {[%clk 0:00:25.6]} 41...
Bb3 {[%clk 0:00:07]} 42. g3 {[%clk 0:00:21.4]} 42... Bd1+ {[%clk 0:00:07.3]} 43.
Kf2 {[%clk 0:00:21.7]} 43... Ng4+ {[%clk 0:00:07.6]} 44. Ke1 {[%clk 0:00:22.1]}
44... Bb3 {[%clk 0:00:06.8]} 45. f5 {[%clk 0:00:22]} 45... exf5 {[%clk
0:00:03.1]} 46. Bxf5+ {[%clk 0:00:22.4]} 46... Be6 {[%clk 0:00:03.8]} 47. Be4
{[%clk 0:00:22.9]} 47... Kc7 {[%clk 0:00:02.3]} 48. Ke2 {[%clk 0:00:22.9]} 1-0

[Event "*** Titled Tuesday Blitz"]
[Site "Chess.com"]
[Date "2021.04.20"]
[Round "10"]
[White "LittleMyMoomin"]
[Black "CraiggoryC"]
[Result "0-1"]
[WhiteElo "1908"]
[BlackElo "2169"]
[TimeControl "180+1"]
[EndTime "11:55:31 PDT"]
[Termination "CraiggoryC won on time"]

1. c4 {[%clk 0:03:00.9]} 1... Nf6 {[%clk 0:02:57.3]} 2. Nc3 {[%clk 0:03:00]}
2... g6 {[%clk 0:02:57.9]} 3. e4 {[%clk 0:02:59.9]} 3... d6 {[%clk 0:02:57.8]}
4. Bd3 {[%clk 0:02:58.3]} 4... Bg7 {[%clk 0:02:58.4]} 5. Bc2 {[%clk 0:02:58.3]}
5... c5 {[%clk 0:02:59]} 6. Nge2 {[%clk 0:02:56.3]} 6... O-O {[%clk 0:02:59.2]}
7. O-O {[%clk 0:02:55.9]} 7... Nc6 {[%clk 0:02:59.7]} 8. d4 {[%clk 0:02:55.9]}
8... cxd4 {[%clk 0:02:59.6]} 9. Nxd4 {[%clk 0:02:56.8]} 9... Nxe4 {[%clk
0:02:58.4]} 10. Nxc6 {[%clk 0:02:53.2]} 10... Nxc3 {[%clk 0:02:58]} 11. Nxd8
{[%clk 0:02:29.6]} 11... Nxd1 {[%clk 0:02:57.7]} 12. Nxb7 {[%clk 0:02:20.2]}
12... Nxb2 {[%clk 0:02:48.4]} 13. Bxb2 {[%clk 0:02:05.9]} 13... Bxb2 {[%clk
0:02:47.1]} 14. Rab1 {[%clk 0:02:06.2]} 14... Bc3 {[%clk 0:02:37.9]} 15. c5
{[%clk 0:02:03.6]} 15... Rb8 {[%clk 0:02:17.1]} 16. c6 {[%clk 0:01:43.6]} 16...
d5 {[%clk 0:01:53.8]} 17. Rb3 {[%clk 0:01:36.1]} 17... Bf6 {[%clk 0:01:14.3]}
18. Rd1 {[%clk 0:01:28.5]} 18... e6 {[%clk 0:01:13.6]} 19. Bd3 {[%clk
0:01:25.3]} 19... Be5 {[%clk 0:00:45.8]} 20. Rdb1 {[%clk 0:01:16.3]} 20... Bc7
{[%clk 0:00:44.6]} 21. Ba6 {[%clk 0:01:07.4]} 21... Bb6 {[%clk 0:00:44.5]} 22.
Nc5 {[%clk 0:01:00.5]} 22... Bxc5 {[%clk 0:00:26.3]} 23. Rxb8 {[%clk 0:00:52.9]}
23... Bxa6 {[%clk 0:00:25.7]} 24. Rxf8+ {[%clk 0:00:52.8]} 24... Kxf8 {[%clk
0:00:20.7]} 25. Rb8+ {[%clk 0:00:52.2]} 25... Ke7 {[%clk 0:00:17.1]} 26. c7
{[%clk 0:00:49.1]} 26... Kd7 {[%clk 0:00:17.4]} 27. Rh8 {[%clk 0:00:36]} 27...
h5 {[%clk 0:00:15.9]} 28. Rh7 {[%clk 0:00:34.8]} 28... Kxc7 {[%clk 0:00:16.1]}
29. Rxf7+ {[%clk 0:00:34.7]} 29... Kd6 {[%clk 0:00:16.3]} 30. Rg7 {[%clk
0:00:26.5]} 30... Bd3 {[%clk 0:00:15.9]} 31. h4 {[%clk 0:00:24.5]} 31... Bf5
{[%clk 0:00:15.4]} 32. g3 {[%clk 0:00:23.3]} 32... d4 {[%clk 0:00:15.2]} 33. Kf1
{[%clk 0:00:21.8]} 33... e5 {[%clk 0:00:15.1]} 34. Rg8 {[%clk 0:00:20.4]} 34...
e4 {[%clk 0:00:14.6]} 35. Rd8+ {[%clk 0:00:20.1]} 35... Ke5 {[%clk 0:00:14.3]}
36. Re8+ {[%clk 0:00:19.9]} 36... Kd5 {[%clk 0:00:14.4]} 37. Ke2 {[%clk
0:00:17.7]} 37... Kc4 {[%clk 0:00:14.5]} 38. Rb8 {[%clk 0:00:13.3]} 38... d3+
{[%clk 0:00:14.3]} 39. Ke1 {[%clk 0:00:11.4]} 39... Bb4+ {[%clk 0:00:14.2]} 40.
Kf1 {[%clk 0:00:07.6]} 40... d2 {[%clk 0:00:13.7]} 41. Rd8 {[%clk 0:00:07.2]}
41... Bg4 {[%clk 0:00:12.8]} 42. Rc8+ {[%clk 0:00:04.4]} 42... Kd3 {[%clk
0:00:12.3]} 43. Rd8+ {[%clk 0:00:04.6]} 43... Kc2 {[%clk 0:00:12.6]} 44. Rc8+
{[%clk 0:00:02.5]} 44... Bc3 {[%clk 0:00:12.8]} 0-1